[Event "Djerba Festival Open-B 2025"]
[Site "Djerba"]
[Date "2025.02.21"]
[Round "5.8"]
[White "Dejardin, Gregoire"]
[Black "Ertemi, Ibrahim K"]
[Result "1-0"]
[Annotator "RC"]
[ECO "A33"]
[WhiteElo "1932"]
[BlackElo "1823"]
[PlyCount "101"]
[EventDate "2025.02.15"]
[EventType "swiss"]
[EventCountry "TUN"]
[SourceTitle "playchess.com"]
[Source "ChessBase"]
[SourceQuality "1"]
[TimeControl "5400+30"]

1. Nf3 {[%emt 0:00:05]} c5 {[%emt 0:00:37]} 2. c4 {[%emt 0:00:12]} Nc6 {[%emt 0:00:17]} 3. d4 {[%emt 0:00:14]} cxd4 {[%emt 0:00:33]} 4. Nxd4 {[%emt 0:00:06]} e6 {[%emt 0:00:38]} 5. Nc3 {[%emt 0:00:30]} Nf6 {[%emt 0:01:46]} 6. g3 {[%emt 0:00:50]} Be7 {[%emt 0:00:30]} 7. Bg2 {[%emt 0:00:08]} Bc5 {[%emt 0:02:23]} 8. e3 {[%emt 0:02:07]} a6 {[%emt 0:02:00]} 9. O-O {[%emt 0:00:23]} O-O {[%emt 0:00:48]} 10. a3 {[%emt 0:01:03]} e5 {[%emt 0:04:16]} 11. Nde2 {[%emt 0:02:36]} Ne7 {[%emt 0:04:48]} 12. b4 {[%emt 0:01:49]} Ba7 {[%emt 0:01:59]} 13. Bb2 {[%emt 0:00:42]} d6 {[%emt 0:02:32]} 14. Rc1 {[%emt 0:00:50]} Rb8 {[%emt 0:03:23]} 15. Qd3 {[%emt 0:02:00]} Bf5 {[%emt 0:01:38]} 16. e4 {[%emt 0:01:21]} Be6 {[%emt 0:04:43]} 17. Rcd1 {[%emt 0:04:01]} Rc8 {[%emt 0:02:57]} 18. Nd5 {[%emt 0:01:11]} Bxd5 {[%emt 0:02:33]} 19. cxd5 {[%emt 0:00:34]} Ng6 {[%emt 0:02:38]} 20. Bh3 {[%emt 0:01:14]} Rb8 {[%emt 0:02:25]} 21. Bc1 {[%emt 0:01:35]} Ne8 {[%emt 0:03:42]} 22. Be3 {[%emt 0:01:19]} Bxe3 {[%emt 0:01:27]} 23. Qxe3 {[%emt 0:00:11]} Nf6 {[%emt 0:00:35]} 24. Rc1 {[%emt 0:01:06]} Nh5 {[%emt 0:07:53]} 25. Rc3 {[%emt 0:01:46]} Qf6 {[%emt 0:06:44]} 26. Bg4 {[%emt 0:03:46]} Nhf4 {[%emt 0:02:14]} 27. gxf4 {[%emt 0:00:31]} exf4 {[%emt 0:00:03]} 28. Qh3 {[%emt 0:02:16]} Ne5 {[%emt 0:00:24]} 29. Kh1 {[%emt 0:06:22]} g6 {[%emt 0:02:25]} 30. Bf3 {[%emt 0:04:28]} Rfe8 {[%emt 0:01:57]} 31. Bg2 {[%emt 0:03:55]} Kg7 {[%emt 0:03:56]} 32. Rfc1 {[%emt 0:01:28]} h5 {[%emt 0:00:30]} 33. f3 {[%emt 0:01:04]} Red8 {[%emt 0:01:48]} 34. Bf1 {[%emt 0:01:33]} b5 {[%emt 0:02:47]} 35. Nd4 {[%emt 0:08:59]} Ng4 {[%emt 0:04:09]} 36. Ne6+ {[%emt 0:03:08]} Qxe6 {[%emt 0:02:39]} 37. dxe6 {[%emt 0:00:37]} Nf2+ {[%emt 0:00:09]} 38. Kg1 {[%emt 0:00:13]} Nxh3+ {[%emt 0:00:10]} 39. Bxh3 {[%emt 0:00:04]} fxe6 {[%emt 0:00:37]} 40. Bxe6 {[%emt 0:44:13]} Kf6 {[%emt 0:00:08]} 41. Bd5 {[%emt 0:00:00]} Ke5 {[%emt 0:01:04]} 42. Kf2 {[%emt 0:00:00]} g5 {[%emt 0:01:56]} 43. h3 {[%emt 0:00:00]} g4 {[%emt 0:00:54]} 44. fxg4 {[%emt 0:00:00]} hxg4 {[%emt 0:00:08]} 45. hxg4 {[%emt 0:00:00]} Rh8 {[%emt 0:00:15]} 46. Rg1 {[%emt 0:00:00]} Rh2+ {[%emt 0:00:34]} 47. Rg2 {[%emt 0:00:00]} Rh7 {[%emt 0:00:41]} 48. g5 {[%emt 0:00:00]} Kd4 {[%emt 0:00:56]} 49. Rf3 {[%emt 0:00:00]} Ke5 {[%emt 0:00:30]} 50. g6 {[%emt 0:00:00]} Rc7 {[%emt 0:00:03]} 51. g7 {[%emt 0:05:30]} 1-0

[Event "Djerba Festival Open-B 2025"]
[Site "Djerba"]
[Date "2025.02.21"]
[Round "5.9"]
[White "Minde, Timothe"]
[Black "Gely, Bernard"]
[Result "0-1"]
[Annotator "RC"]
[ECO "B51"]
[WhiteElo "1879"]
[BlackElo "1928"]
[PlyCount "52"]
[EventDate "2025.02.15"]
[EventType "swiss"]
[EventCountry "TUN"]
[SourceTitle "playchess.com"]
[Source "ChessBase"]
[SourceQuality "1"]
[TimeControl "5400+30"]

1. e4 {[%emt 1:31:00]} c5 {[%emt 1:31:00]} 2. Nf3 {[%emt 0:00:30]} d6 {[%emt 0:00:30]} 3. Bb5+ {[%emt 0:00:30]} Nd7 {[%emt 0:00:30]} 4. c4 {[%emt 0:00:30]} Qc7 {[%emt 0:00:30]} 5. O-O {[%emt 0:00:30]} e6 {[%emt 0:00:30]} 6. b4 {[%emt 0:00:30]} a6 {[%emt 0:00:30]} 7. Bxd7+ {[%emt 0:00:30]} Bxd7 {[%emt 0:00:30]} 8. bxc5 {[%emt 0:00:30]} Qxc5 {[%emt 0:00:30]} 9. Qb3 {[%emt 0:00:30]} Rc8 {[%emt 0:00:30]} 10. Qxb7 {[%emt 0:00:30]} Qxc4 {[%emt 0:00:30]} 11. Nc3 {[%emt 0:00:30]} Qc6 {[%emt 0:00:30]} 12. Qb3 {[%emt 0:00:30]} Nf6 {[%emt 0:00:30]} 13. Re1 {[%emt 0:00:30]} Qa8 {[%emt 0:00:30]} 14. e5 {[%emt 0:00:30]} Ng4 {[%emt 0:00:30]} 15. exd6 {[%emt 0:00:30]} Bxd6 {[%emt 0:00:30]} 16. Ne4 {[%emt 0:00:30]} Be7 {[%emt 0:00:30]} 17. Ba3 {[%emt 0:00:30]} Rb8 {[%emt 0:00:30]} 18. Qc3 {[%emt 0:00:30]} Nf6 {[%emt 0:00:30]} 19. Nd6+ {[%emt 0:00:30]} Bxd6 {[%emt 0:00:30]} 20. Bxd6 {[%emt 0:00:30]} Rc8 {[%emt 0:00:30]} 21. Qe3 {[%emt 0:00:30]} Bc6 {[%emt 0:00:30]} 22. Nd4 {[%emt 0:00:30]} Qa7 {[%emt 0:00:30]} 23. Qe5 {[%emt 0:00:30]} Bd5 {[%emt 0:00:30]} 24. Rac1 {[%emt 0:00:30]} Kd7 {[%emt 0:00:30]} 25. Nf5 {[%emt 0:00:30]} Ng4 {[%emt 0:00:30]} 26. Qxg7 {[%emt 0:00:30]} Qxf2+ {[%emt 0:00:30]} 0-1

[Event "Djerba Festival Open-B 2025"]
[Site "Djerba"]
[Date "2025.02.21"]
[Round "5.10"]
[White "Le Dore, Yann"]
[Black "Charfeddine, Akram"]
[Result "0-1"]
[Annotator "RC"]
[ECO "B23"]
[WhiteElo "1846"]
[BlackElo "1915"]
[PlyCount "58"]
[EventDate "2025.02.15"]
[EventType "swiss"]
[EventCountry "TUN"]
[SourceTitle "playchess.com"]
[Source "ChessBase"]
[SourceQuality "1"]
[TimeControl "5400+30"]

1. e4 {[%emt 0:00:04]} c5 {[%emt 0:12:05]} 2. Nc3 {[%emt 0:00:08]} Nc6 {[%emt 0:00:36]} 3. Bb5 {[%emt 0:00:08]} a6 {[%emt 0:03:26]} 4. Bxc6 {[%emt 0:00:07]} bxc6 {[%emt 0:01:50]} 5. d3 {[%emt 0:00:10]} d6 {[%emt 0:02:49]} 6. f4 {[%emt 0:00:16]} Nf6 {[%emt 0:04:47]} 7. Nf3 {[%emt 0:01:08]} g6 {[%emt 0:02:22]} 8. O-O {[%emt 0:00:14]} Bg7 {[%emt 0:00:14]} 9. Qe1 {[%emt 0:00:38]} Bg4 {[%emt 0:01:54]} 10. e5 {[%emt 0:03:49]} dxe5 {[%emt 0:02:02]} 11. fxe5 {[%emt 0:03:51]} Nd5 {[%emt 0:04:28]} 12. e6 {[%emt 0:10:31]} Bxe6 {[%emt 0:05:02]} 13. Ng5 {[%emt 0:00:30]} Nc7 {[%emt 0:03:52]} 14. Bf4 {[%emt 0:09:20]} Bf5 {[%emt 0:06:50]} 15. Bxc7 {[%emt 0:05:04]} Qxc7 {[%emt 0:04:01]} 16. Nxf7 {[%emt 0:00:37]} Kxf7 {[%emt 0:04:55]} 17. g4 {[%emt 0:00:07]} e6 {[%emt 0:01:53]} 18. gxf5 {[%emt 0:01:29]} exf5 {[%emt 0:02:09]} 19. Qe4 {[%emt 0:04:46]} Bd4+ {[%emt 0:04:41]} 20. Kh1 {[%emt 0:00:13]} Rhe8 {[%emt 0:01:04]} 21. Qh4 {[%emt 0:02:07]} Kg7 {[%emt 0:01:22]} 22. Rae1 {[%emt 0:01:30]} Qf7 {[%emt 0:02:02]} 23. Ne4 {[%emt 0:03:59]} Bf6 {[%emt 0:03:39]} 24. Qxf6+ {[%emt 0:12:05]} Qxf6 {[%emt 0:00:14]} 25. Nxf6 {[%emt 0:00:03]} Kxf6 {[%emt 0:00:14]} 26. Kg2 {[%emt 0:00:28]} g5 {[%emt 0:03:44]} 27. Kf2 {[%emt 0:02:35]} h5 {[%emt 0:01:43]} 28. h4 {[%emt 0:02:19]} g4 {[%emt 0:01:02]} 29. Kg3 {[%emt 0:03:02]} Rad8 {[%emt 0:04:02]} 0-1

[Event "Djerba Festival Open-B 2025"]
[Site "Djerba"]
[Date "2025.02.21"]
[Round "5.11"]
[White "Girard, Adrien"]
[Black "Algadari, Mahmod"]
[Result "0-1"]
[Annotator "RC"]
[ECO "B07"]
[WhiteElo "1796"]
[BlackElo "1909"]
[PlyCount "48"]
[EventDate "2025.02.15"]
[EventType "swiss"]
[EventCountry "TUN"]
[SourceTitle "playchess.com"]
[Source "ChessBase"]
[SourceQuality "1"]
[TimeControl "5400+30"]

1. e4 {[%emt 0:00:03]} d6 {[%emt 0:00:03]} 2. d4 {[%emt 0:00:06]} Nf6 {[%emt 0:00:29]} 3. Nc3 {[%emt 0:00:06]} g6 {[%emt 0:00:02]} 4. Be3 {[%emt 0:00:07]} c6 {[%emt 0:00:21]} 5. Nf3 {[%emt 0:00:13]} Bg4 {[%emt 0:00:56]} 6. h3 {[%emt 0:00:23]} Bxf3 {[%emt 0:00:38]} 7. Qxf3 {[%emt 0:00:12]} Nbd7 {[%emt 0:00:17]} 8. Bd3 {[%emt 0:01:27]} Bg7 {[%emt 0:01:09]} 9. O-O {[%emt 0:01:04]} O-O {[%emt 0:00:15]} 10. a4 {[%emt 0:01:51]} a5 {[%emt 0:00:11]} 11. Ne2 {[%emt 0:01:08]} e5 {[%emt 0:00:48]} 12. d5 {[%emt 0:00:08]} Qe7 {[%emt 0:12:31]} 13. Ng3 {[%emt 0:02:57]} h6 {[%emt 0:05:26]} 14. Qe2 {[%emt 0:01:54]} cxd5 {[%emt 0:01:57]} 15. exd5 {[%emt 0:00:19]} Nxd5 {[%emt 0:01:18]} 16. Be4 {[%emt 0:01:44]} Nxe3 {[%emt 0:01:41]} 17. Qxe3 {[%emt 0:00:07]} Nc5 {[%emt 0:00:37]} 18. Rfd1 {[%emt 0:01:16]} Kh7 {[%emt 0:01:16]} 19. Qd2 {[%emt 0:07:03]} f5 {[%emt 0:02:58]} 20. Bd5 {[%emt 0:02:05]} e4 {[%emt 0:02:19]} 21. c3 {[%emt 0:02:22]} Rfe8 {[%emt 0:00:44]} 22. Nf1 {[%emt 0:00:58]} Rad8 {[%emt 0:06:03]} 23. Ne3 {[%emt 0:01:08]} f4 {[%emt 0:03:52]} 24. Nc4 {[%emt 0:00:41]} Nb3 {[%emt 0:06:33]} 0-1

[Event "Djerba Festival Open-B 2025"]
[Site "Djerba"]
[Date "2025.02.21"]
[Round "5.12"]
[White "Smida, Tahar"]
[Black "Marceil, Jean"]
[Result "0-1"]
[Annotator "RC"]
[ECO "C02"]
[WhiteElo "1769"]
[BlackElo "1901"]
[PlyCount "80"]
[EventDate "2025.02.15"]
[EventType "swiss"]
[EventCountry "TUN"]
[SourceTitle "playchess.com"]
[Source "ChessBase"]
[SourceQuality "1"]
[TimeControl "5400+30"]

1. e4 {[%emt 0:00:03]} e6 {[%emt 0:00:24]} 2. d4 {[%emt 0:00:11]} d5 {[%emt 0:00:09]} 3. e5 {[%emt 0:00:12]} c5 {[%emt 0:00:08]} 4. c3 {[%emt 0:00:11]} Nc6 {[%emt 0:00:09]} 5. Nf3 {[%emt 0:00:15]} Bd7 {[%emt 0:00:08]} 6. Be2 {[%emt 0:05:08]} Qb6 {[%emt 0:03:01]} 7. a3 {[%emt 0:01:21]} a5 {[%emt 0:03:07]} 8. O-O {[%emt 0:02:31]} a4 {[%emt 0:02:30]} 9. Qd3 {[%emt 0:13:23]} Na5 {[%emt 0:06:21]} 10. Nbd2 {[%emt 0:02:59]} Nh6 {[%emt 0:02:28]} 11. Rd1 {[%emt 0:04:04]} Nf5 {[%emt 0:13:47]} 12. g4 {[%emt 0:00:41]} c4 {[%emt 0:00:50]} 13. Qc2 {[%emt 0:00:34]} Nh6 {[%emt 0:00:20]} 14. h3 {[%emt 0:01:20]} Be7 {[%emt 0:02:37]} 15. Rb1 {[%emt 0:01:17]} O-O-O {[%emt 0:05:55]} 16. Nf1 {[%emt 0:04:08]} Rdg8 {[%emt 0:02:30]} 17. Ng3 {[%emt 0:05:28]} Nb3 {[%emt 0:02:33]} 18. Bg5 {[%emt 0:02:52]} Qd8 {[%emt 0:01:48]} 19. Bxe7 {[%emt 0:00:23]} Qxe7 {[%emt 0:00:17]} 20. Rf1 {[%emt 0:04:40]} f6 {[%emt 0:08:22]} 21. Rbe1 {[%emt 0:03:28]} Be8 {[%emt 0:00:19]} 22. Qd1 {[%emt 0:02:54]} Nf7 {[%emt 0:01:08]} 23. Kg2 {[%emt 0:03:16]} fxe5 {[%emt 0:06:41]} 24. Nxe5 {[%emt 0:01:17]} Nxe5 {[%emt 0:00:20]} 25. dxe5 {[%emt 0:00:04]} g6 {[%emt 0:05:12]} 26. f4 {[%emt 0:02:31]} h5 {[%emt 0:00:24]} 27. Rf2 {[%emt 0:05:19]} Bc6 {[%emt 0:04:30]} 28. Kh2 {[%emt 0:03:54]} Qc5 {[%emt 0:01:44]} 29. Ref1 {[%emt 0:02:02]} h4 {[%emt 0:00:42]} 30. Nh1 {[%emt 0:00:44]} b5 {[%emt 0:01:10]} 31. Bf3 {[%emt 0:02:09]} Rf8 {[%emt 0:02:53]} 32. Bg2 {[%emt 0:00:13]} Kc7 {[%emt 0:01:06]} 33. f5 {[%emt 0:01:49]} gxf5 {[%emt 0:01:04]} 34. gxf5 {[%emt 0:00:08]} d4 {[%emt 0:03:56]} 35. Bxc6 {[%emt 0:02:56]} Qxe5+ {[%emt 0:00:14]} 36. Rf4 {[%emt 0:00:20]} Rxf5 {[%emt 0:02:57]} 37. Qf3 {[%emt 0:09:56]} Rhf8 {[%emt 0:04:18]} 38. Bxb5 {[%emt 0:01:31]} Qxb5 {[%emt 0:01:55]} 39. Qe4 {[%emt 0:02:47]} Nd2 {[%emt 0:02:57]} 40. Qxd4 {[%emt 0:01:12]} Nxf1+ {[%emt 0:00:11]} 0-1

[Event "Djerba Festival Open-B 2025"]
[Site "Djerba"]
[Date "2025.02.21"]
[Round "5.13"]
[White "Chaouech, Oussama"]
[Black "Ajbara Jamal"]
[Result "0-1"]
[Annotator "NA RC"]
[ECO "D17"]
[WhiteElo "1651"]
[BlackElo "1898"]
[PlyCount "76"]
[EventDate "2025.02.15"]
[EventType "swiss"]
[EventCountry "TUN"]
[SourceTitle "playchess.com"]
[Source "ChessBase"]
[SourceQuality "1"]
[TimeControl "5400+30"]

1. d4 {[%emt 0:04:25]} d5 {[%emt 0:02:15]} 2. c4 {[%emt 0:00:07]} c6 {[%emt 0:00:08]} 3. Nc3 {[%emt 0:00:04]} Nf6 {[%emt 0:00:10]} 4. Nf3 {[%emt 0:00:05]} dxc4 {[%emt 0:00:42]} 5. a4 {[%emt 0:00:08]} Bf5 {[%emt 0:00:27]} 6. Ne5 {[%emt 0:00:17]} e6 {[%emt 0:02:16]} 7. f3 {[%emt 0:01:16]} Bb4 {[%emt 0:06:21]} 8. e4 {[%emt 0:01:47]} Bxe4 {[%emt 0:07:47]} 9. fxe4 {[%emt 0:05:35]} Nxe4 {[%emt 0:00:13]} 10. Nf3 {[%emt 0:12:42]} Nxc3 {[%emt 0:02:52]} 11. bxc3 {[%emt 0:03:41]} Bxc3+ {[%emt 0:01:18]} 12. Bd2 {[%emt 0:00:15]} Bxa1 {[%emt 0:00:25]} 13. Qxa1 {[%emt 0:00:12]} b5 {[%emt 0:00:27]} 14. Qa3 {[%emt 0:06:59]} a5 {[%emt 0:04:55]} 15. axb5 {[%emt 0:07:31]} cxb5 {[%emt 0:00:43]} 16. Be2 {[%emt 0:02:00]} Qd5 {[%emt 0:05:46]} 17. O-O {[%emt 0:00:42]} b4 {[%emt 0:05:51]} 18. Qa4+ {[%emt 0:02:49]} Nd7 {[%emt 0:03:32]} 19. Rc1 {[%emt 0:15:02]} Rc8 {[%emt 0:07:42]} 20. Be3 {[%emt 0:02:25]} O-O {[%emt 0:03:27]} 21. Ng5 {[%emt 0:02:08]} Nb6 {[%emt 0:04:22]} 22. Qc2 {[%emt 0:01:54]} f5 {[%emt 0:00:00]} 23. Bf3 {[%emt 0:01:37]} Qd6 {[%emt 0:01:25]} 24. Qf2 {[%emt 0:01:02]} Rf6 {[%emt 0:02:21]} 25. Bb7 {[%emt 0:01:37]} Rd8 {[%emt 0:02:12]} 26. Bf4 {[%emt 0:05:01]} Qxd4 {[%emt 0:04:44]} 27. Qxd4 {[%emt 0:01:41]} Rxd4 {[%emt 0:00:09]} 28. Be5 {[%emt 0:00:00]} Rd3 {[%emt 0:03:23]} 29. Bxf6 {[%emt 0:02:44]} gxf6 {[%emt 0:00:15]} 30. Nxe6 {[%emt 0:00:22]} b3 {[%emt 0:01:08]} 31. Nf4 {[%emt 0:02:14]} Rd2 {[%emt 0:00:37]} 32. Kf1 {[%emt 0:02:18]} b2 {[%emt 0:01:09]} 33. Rb1 {[%emt 0:00:14]} c3 {[%emt 0:03:08]} 34. Ne2 {[%emt 0:01:13]} Rxe2 {[%emt 0:00:15]} 35. Kxe2 {[%emt 0:00:19]} c2 {[%emt 0:00:02]} 36. Rxb2 {[%emt 0:00:18]} c1=Q {[%emt 0:00:11]} 37. Rxb6 {[%emt 0:00:10]} Qc4+ {[%emt 0:01:01]} 38. Kf3 {[%emt 0:00:59]} Qd3+ {[%emt 0:04:53]} 0-1

[Event "Djerba Festival Open-B 2025"]
[Site "Djerba"]
[Date "2025.02.21"]
[Round "5.14"]
[White "Tahir, Abderrahmane"]
[Black "Chelli, Hichem"]
[Result "1-0"]
[Annotator "NA RC"]
[ECO "A04"]
[WhiteElo "1891"]
[BlackElo "1763"]
[PlyCount "173"]
[EventDate "2025.02.15"]
[EventType "swiss"]
[EventCountry "TUN"]
[SourceTitle "playchess.com"]
[Source "ChessBase"]
[SourceQuality "1"]
[TimeControl "5400+30"]

1. Nf3 {[%emt 0:03:44]} c5 {[%emt 0:07:38]} 2. g3 {[%emt 0:00:04]} Nc6 {[%emt 0:02:04]} 3. Bg2 {[%emt 0:00:55]} g6 {[%emt 0:01:09]} 4. c3 {[%emt 0:02:23]} e5 {[%emt 0:03:06]} 5. e4 {[%emt 0:01:46]} Bg7 {[%emt 0:00:33]} 6. d3 {[%emt 0:00:34]} Nge7 {[%emt 0:00:43]} 7. Nbd2 {[%emt 0:00:35]} O-O {[%emt 0:00:15]} 8. O-O {[%emt 0:01:10]} h6 {[%emt 0:05:29]} 9. Re1 {[%emt 0:07:07]} d5 {[%emt 0:14:18]} 10. Qc2 {[%emt 0:00:21]} Be6 {[%emt 0:03:02]} 11. b3 {[%emt 0:10:11]} d4 {[%emt 0:10:38]} 12. c4 {[%emt 0:01:14]} a5 {[%emt 0:03:47]} 13. a3 {[%emt 0:03:10]} Qd7 {[%emt 0:06:33]} 14. Rb1 {[%emt 0:03:32]} Kh7 {[%emt 0:04:19]} 15. h4 {[%emt 0:12:29]} f5 {[%emt 0:07:06]} 16. exf5 {[%emt 0:01:39]} gxf5 {[%emt 0:00:41]} 17. Nh2 {[%emt 0:02:01]} Rf7 {[%emt 0:02:49]} 18. f4 {[%emt 0:01:23]} Rg8 {[%emt 0:03:02]} 19. Ndf1 {[%emt 0:05:15]} Bf6 {[%emt 0:00:30]} 20. Nd2 {[%emt 0:00:00]} Bg7 {[%emt 0:00:30]} 21. Ndf1 {[%emt 0:01:00]} Bf6 {[%emt 0:02:28]} 22. Qd2 {[%emt 0:00:00]} Bg7 {[%emt 0:00:00]} 23. Qc2 {[%emt 0:01:00]} Bf6 {[%emt 0:01:00]} 24. Qd2 {[%emt 0:00:00]} Bg7 {[%emt 0:00:00]} 25. Qc2 {[%emt 0:01:00]} Bf6 {[%emt 0:01:00]} 26. Qd2 {[%emt 0:17:28]} Bxh4 {[%emt 0:09:14]} 27. gxh4 {[%emt 0:03:40]} Rfg7 {[%emt 0:00:17]} 28. Re2 {[%emt 0:00:03]} e4 {[%emt 0:00:25]} 29. Qe1 {[%emt 0:07:17]} e3 {[%emt 0:02:35]} 30. h5 {[%emt 0:02:57]} Qe8 {[%emt 0:00:59]} 31. Nxe3 {[%emt 0:01:24]} dxe3 {[%emt 0:00:29]} 32. Bxe3 {[%emt 0:00:01]} Qxh5 {[%emt 0:02:12]} 33. Bxc5 {[%emt 0:02:41]} Ng6 {[%emt 0:04:55]} 34. Rbb2 {[%emt 0:05:11]} Nxf4 {[%emt 0:00:12]} 35. Red2 {[%emt 0:00:24]} Qh3 {[%emt 0:02:13]} 36. Qf1 {[%emt 0:00:16]} Qg3 {[%emt 0:01:15]} 37. Kh1 {[%emt 0:02:07]} Ne5 {[%emt 0:00:25]} 38. Bd6 {[%emt 0:01:18]} Neg6 {[%emt 0:01:06]} 39. Rf2 {[%emt 0:01:03]} Qe3 {[%emt 0:00:31]} 40. Bxf4 {[%emt 0:00:27]} Nxf4 {[%emt 0:00:09]} 41. Rxf4 {[%emt 0:00:16]} Bd7 {[%emt 0:00:34]} 42. d4 {[%emt 0:01:01]} Bc6 {[%emt 0:00:40]} 43. d5 {[%emt 0:00:02]} Be8 {[%emt 0:00:09]} 44. Rf3 {[%emt 0:00:25]} Qd4 {[%emt 0:00:16]} 45. Rff2 {[%emt 0:00:48]} Bh5 {[%emt 0:00:22]} 46. Qb1 {[%emt 0:01:16]} Bg6 {[%emt 0:01:10]} 47. Nf3 {[%emt 0:00:11]} Qg4 {[%emt 0:00:26]} 48. Ne5 {[%emt 0:00:29]} Qh4+ {[%emt 0:00:16]} 49. Kg1 {[%emt 0:00:02]} f4 {[%emt 0:00:59]} 50. Nxg6 {[%emt 0:00:10]} Rxg6 {[%emt 0:00:05]} 51. Kf1 {[%emt 0:00:44]} Kh8 {[%emt 0:00:00]} 52. Qe4 {[%emt 0:00:29]} Rg4 {[%emt 0:00:01]} 53. Qe5+ {[%emt 0:00:38]} R8g7 {[%emt 0:00:19]} 54. d6 {[%emt 0:01:14]} Rxg2 {[%emt 0:00:07]} 55. Rxg2 {[%emt 0:00:05]} Qh1+ {[%emt 0:00:01]} 56. Ke2 {[%emt 0:00:28]} Qxg2+ {[%emt 0:00:06]} 57. Kd3 {[%emt 0:00:18]} Qg3+ {[%emt 0:01:27]} 58. Ke2 {[%emt 0:02:04]} Qg2+ {[%emt 0:00:00]} 59. Kd3 {[%emt 0:00:00]} Qg3+ {[%emt 0:01:00]} 60. Kd4 {[%emt 0:00:04]} Qg1+ {[%emt 0:00:52]} 61. Kd5 {[%emt 0:00:19]} Qh1+ {[%emt 0:01:02]} 62. Kc5 {[%emt 0:00:54]} Kh7 {[%emt 0:01:19]} 63. Qf5+ {[%emt 0:00:28]} Kh8 {[%emt 0:00:19]} 64. Qf6 {[%emt 0:00:17]} Kg8 {[%emt 0:00:38]} 65. Qe6+ {[%emt 0:00:42]} Kh7 {[%emt 0:00:18]} 66. Qf5+ {[%emt 0:00:36]} Kg8 {[%emt 0:00:30]} 67. Qd5+ {[%emt 0:00:07]} Qxd5+ {[%emt 0:00:10]} 68. Kxd5 {[%emt 0:00:13]} Kf7 {[%emt 0:00:26]} 69. b4 {[%emt 0:00:52]} a4 {[%emt 0:00:33]} 70. Rf2 {[%emt 0:00:25]} Rg5+ {[%emt 0:00:49]} 71. Ke4 {[%emt 0:00:05]} Ke6 {[%emt 0:00:32]} 72. c5 {[%emt 0:00:03]} b6 {[%emt 0:00:43]} 73. Rd2 {[%emt 0:00:41]} Kd7 {[%emt 0:00:33]} 74. c6+ {[%emt 0:00:59]} Kxc6 {[%emt 0:00:40]} 75. d7 {[%emt 0:00:01]} Rg8 {[%emt 0:00:17]} 76. d8=Q {[%emt 0:00:03]} Rxd8 {[%emt 0:00:13]} 77. Rxd8 {[%emt 0:00:02]} Kb5 {[%emt 0:00:12]} 78. Rc8 {[%emt 0:01:01]} h5 {[%emt 0:00:11]} 79. Kxf4 {[%emt 0:00:18]} h4 {[%emt 0:00:05]} 80. Ke4 {[%emt 0:00:08]} h3 {[%emt 0:00:01]} 81. Kd5 {[%emt 0:00:17]} Ka6 {[%emt 0:00:11]} 82. Kc6 {[%emt 0:00:18]} Ka7 {[%emt 0:00:03]} 83. Rh8 {[%emt 0:00:07]} b5 {[%emt 0:00:19]} 84. Rxh3 {[%emt 0:00:24]} Ka6 {[%emt 0:00:13]} 85. Rh4 {[%emt 0:00:24]} Ka7 {[%emt 0:00:03]} 86. Rh8 {[%emt 0:00:16]} Ka6 {[%emt 0:00:05]} 87. Ra8# {[%emt 0:00:03]} 1-0

[Event "Djerba Festival Open-B 2025"]
[Site "Djerba"]
[Date "2025.02.21"]
[Round "5.15"]
[White "Belhaj, Nadhem"]
[Black "Banat, Rizlene"]
[Result "0-1"]
[Annotator "RC"]
[ECO "A30"]
[WhiteElo "1960"]
[BlackElo "1785"]
[PlyCount "132"]
[EventDate "2025.02.15"]
[EventType "swiss"]
[EventCountry "TUN"]
[SourceTitle "playchess.com"]
[Source "ChessBase"]
[SourceQuality "1"]
[TimeControl "5400+30"]

1. Nf3 {[%emt 1:31:00]} c5 {[%emt 1:31:00]} 2. c4 {[%emt 0:00:30]} e6 {[%emt 0:00:30]} 3. g3 {[%emt 0:00:30]} f5 {[%emt 0:00:30]} 4. Bg2 {[%emt 0:00:30]} Be7 {[%emt 0:00:30]} 5. Nc3 {[%emt 0:00:30]} Nc6 {[%emt 0:00:30]} 6. d4 {[%emt 0:00:30]} cxd4 {[%emt 0:00:30]} 7. Nxd4 {[%emt 0:00:30]} a6 {[%emt 0:00:30]} 8. O-O {[%emt 0:00:30]} Qb6 {[%emt 0:00:30]} 9. Nb3 {[%emt 0:00:30]} Nf6 {[%emt 0:00:30]} 10. h3 {[%emt 0:00:30]} O-O {[%emt 0:00:30]} 11. c5 {[%emt 0:00:30]} Qc7 {[%emt 0:00:30]} 12. Bf4 {[%emt 0:00:30]} Qd8 {[%emt 0:00:30]} 13. Bd6 {[%emt 0:00:30]} Bxd6 {[%emt 0:00:30]} 14. cxd6 {[%emt 0:00:30]} b6 {[%emt 0:00:30]} 15. e3 {[%emt 0:00:30]} Bb7 {[%emt 0:00:30]} 16. Qd2 {[%emt 0:00:30]} Bc8 {[%emt 0:00:30]} 17. Qd1 Bb7 18. Qd2 Rb8 {[%emt 0:01:00]} 19. Rfc1 {[%emt 0:01:30]} Ne5 {[%emt 0:00:30]} 20. Qe2 {[%emt 0:00:30]} Bxg2 {[%emt 0:00:30]} 21. Kxg2 {[%emt 0:00:30]} b5 {[%emt 0:00:30]} 22. Nc5 {[%emt 0:00:30]} Qb6 {[%emt 0:00:30]} 23. b4 {[%emt 0:00:30]} Qxd6 {[%emt 0:00:30]} 24. f4 {[%emt 0:00:30]} Nc4 {[%emt 0:00:30]} 25. Qf3 {[%emt 0:00:30]} Qd2+ {[%emt 0:00:30]} 26. Qe2 {[%emt 0:00:30]} Qxe2+ {[%emt 0:00:30]} 27. Nxe2 {[%emt 0:00:30]} Nxe3+ {[%emt 0:00:30]} 28. Kf3 {[%emt 0:00:30]} Ned5 {[%emt 0:00:30]} 29. Nxa6 {[%emt 0:00:30]} Ra8 {[%emt 0:00:30]} 30. Nc7 {[%emt 0:00:30]} Rab8 {[%emt 0:00:30]} 31. Na6 Ra8 32. Nc7 Ra3+ {[%emt 0:01:00]} 33. Kg2 {[%emt 0:01:30]} Raa8 {[%emt 0:00:30]} 34. Kf3 Ra3+ 35. Kg2 Raa8 {[%emt 0:01:00]} 36. Kf3 Ra3+ 37. Kg2 Nxb4 {[%emt 0:01:00]} 38. Nxb5 {[%emt 0:02:30]} Rxa2 {[%emt 0:00:30]} 39. Rxa2 {[%emt 0:00:30]} Nxa2 {[%emt 0:00:30]} 40. Rc4 {[%emt 0:00:30]} Nd5 {[%emt 0:00:30]} 41. Ra4 {[%emt 0:00:30]} Nab4 {[%emt 0:00:30]} 42. Ra7 {[%emt 0:00:30]} Nf6 {[%emt 0:00:30]} 43. Nd6 {[%emt 0:00:30]} Nc6 {[%emt 0:00:30]} 44. Kf3 Nb4 45. Kg2 Nc6 46. Rc7 {[%emt 0:01:30]} h6 {[%emt 0:01:30]} 47. Nc1 {[%emt 0:00:30]} Rb8 {[%emt 0:00:30]} 48. Nd3 {[%emt 0:00:30]} Nd5 {[%emt 0:00:30]} 49. Ra7 Nf6 50. Rc7 Rb3 {[%emt 0:01:00]} 51. Nc5 {[%emt 0:01:30]} Rb2+ {[%emt 0:00:30]} 52. Kg1 {[%emt 0:00:30]} Nd4 {[%emt 0:00:30]} 53. Nxd7 {[%emt 0:00:30]} Nxd7 {[%emt 0:00:30]} 54. Rxd7 {[%emt 0:00:30]} Ne2+ {[%emt 0:00:30]} 55. Kf2 {[%emt 0:00:30]} Nxf4+ {[%emt 0:00:30]} 56. Kf3 {[%emt 0:00:30]} Nxh3 {[%emt 0:00:30]} 57. Ne8 {[%emt 0:00:30]} Ng5+ {[%emt 0:00:30]} 58. Ke3 {[%emt 0:00:30]} Rb3+ {[%emt 0:00:30]} 59. Kf2 {[%emt 0:00:30]} Ne4+ {[%emt 0:00:30]} 60. Kg2 {[%emt 0:00:30]} Rxg3+ {[%emt 0:00:30]} 61. Kh2 {[%emt 0:00:30]} Rg6 {[%emt 0:00:30]} 62. Nc7 {[%emt 0:00:30]} Rf6 {[%emt 0:00:30]} 63. Ne8 {[%emt 0:00:30]} Rf7 {[%emt 0:00:30]} 64. Rd8 {[%emt 0:00:30]} Kh7 {[%emt 0:00:30]} 65. Kg2 {[%emt 0:00:30]} Nf6 {[%emt 0:00:30]} 66. Nd6 {[%emt 0:00:30]} Rd7 {[%emt 0:00:30]} 0-1